[Event "CCT Airthings Masters Play-In 2023"]
[Site "Online"]
[Date "2023.02.03"]
[Round "5"]
[White "PSvidler"]
[Black "Indianlad"]
[Result "0-1"]
[ECO "C90"]
[WhiteElo "2726"]
[BlackElo "2565"]
[Annotator "TA"]
[PlyCount "35"]
[EventDate "2023.02.03"]
[EventType "swiss"]
[EventCountry "NET"]
[SourceTitle "playchess.com"]
[Source "ChessBase"]
[SourceQuality "1"]
[TimeControl "600+2"]

{[%evp 16,35,19,11,35,15,20,26,25,33,21,27,32,56,85,83,70,56,75,0,11,-1280]} 1. e4 {[%emt 0:00:03]} e5 {[%emt 0:01:30]} 2. Nf3 {[%emt 0:00:06]} Nc6 {[%emt 0:00:01]} 3. Bb5 {[%emt 0:01:21][%cal Bf1b5,Bb5a4,Ba4b3][%mdl 32]} a6 {[%emt 0:00:02]} 4. Ba4 {[%emt 0:00:01]} Nf6 {[%emt 0:00:01]} 5. O-O {[%emt 0:00:01]} Be7 {[%emt 0:00:06]} 6. Re1 {[%emt 0:00:01]} b5 {[%emt 0:00:02]} 7. Bb3 {[%emt 0:00:01]} O-O {[%emt 0:00:00]} 8. d3 {[%emt 0:00:04]} d6 {[%emt 0:00:09]} 9. c3 {[%emt 0:00:00]} h6 {[%emt 0:00:09] C90: Closed Ruy Lopez with 7...d6: Early deviations.} 10. a4 {[%emt 0:00:09] axb5 is the strong threat.} Rb8 {[%emt 0:00:17]} 11. axb5 {[%emt 0:00:08]} axb5 {[%emt 0:00:01] White has an edge.} 12. d4 {[%emt 0:00:12]} exd4 {[%emt 0:00:06]} 13. cxd4 {[%emt 0:00:02]} Bg4 {[%emt 0:00:22] [#]} 14. Nc3 $146 {[%emt 0:00:13]} ({Predecessor:} 14. h3 Bxf3 15. gxf3 d5 16. e5 Nh7 17. f4 Qd7 18. Re3 Nb4 19. Rg3 Ra8 20. Ra3 Na6 21. f5 Ng5 22. f6 gxf6 23. h4 Bxa3 24. bxa3 {1-0 Fogarasi,T (2435)-Horvath,A (2322) Budapest FS07 GM 2006 (2)}) 14... Nb4 {[%emt 0:01:23]} 15. h3 {[%emt 0:00:29]} Bh5 {[%emt 0:00:04]} 16. g4 {[%emt 0:00:16]} Bg6 {[%emt 0:00:02] [#]} 17. e5 {[%emt 0:00:08]} ({White should play} 17. Nh4 $1 $16 {[%cal Rh4g6]} Kh8 18. Qe2) 17... Nd7 {[%emt 0:00:06] [#]} 18. Qc2 $2 {[%emt 0:02:26][%mdl 8192] Weighted Error Value: White=0.13 (very precise) /Black=0.09 (flawless)} 0-1

[Event "CCT Airthings Masters Play-In 2023"]
[Site "Online"]
[Date "2023.02.03"]
[Round "5"]
[White "GHANDEEVAM"]
[Black "BillieKimbah"]
[Result "1-0"]
[ECO "D36"]
[WhiteElo "2708"]
[BlackElo "2601"]
[Annotator "TA"]
[PlyCount "83"]
[EventDate "2023.02.03"]
[EventType "swiss"]
[EventCountry "NET"]
[SourceTitle "playchess.com"]
[Source "ChessBase"]
[SourceQuality "1"]
[TimeControl "600+2"]

{[%evp 20,83,27,0,0,5,13,25,52,41,63,40,101,105,124,106,144,145,135,91,101,114,110,82,91,82,81,42,118,84,91,74,139,156,218,189,267,222,241,233,222,129,121,97,105,103,141,141,162,166,202,157,190,164,182,145,161,164,233,229,213,196,206,197,295,283]} 1. d4 {[%emt 0:00:03]} Nf6 {[%emt 0:00:04]} 2. c4 {[%emt 0:00:01]} e6 {[%emt 0:00:02]} 3. Nc3 {[%emt 0:00:01]} d5 {[%emt 0:00:03]} 4. cxd5 {[%emt 0:00:01]} exd5 {[%emt 0:00:01]} 5. Bg5 {[%emt 0:00:01]} c6 {[%emt 0:00:01]} 6. e3 {[%emt 0:00:01]} h6 {[%emt 0:00:01]} 7. Bh4 {[%emt 0:00:01]} Be7 {[%emt 0:00:02]} 8. Bd3 {[%emt 0:00:02]} O-O {[%emt 0:00:01]} 9. Qc2 {[%emt 0:00:04]} Re8 {[%emt 0:00:03]} 10. Nge2 {[%emt 0:00:02]} Nbd7 {[%emt 0:00:09]} 11. f3 {[%emt 0:00:04]} b5 {[%emt 0:00:20] is more profitable than 11...c5 at the moment. D36: Queen's Gambit Declined: Exchange Variation: Main line (5 Bg5 c6 6 Qc2).} 12. O-O {[%emt 0:00:18]} Bb7 {[%emt 0:00:08]} 13. Rad1 {[%emt 0:00:07] [#]} Rc8 $146 {[%emt 0:00:22] White has an edge.} ({Predecessor:} 13... b4 14. Na4 c5 15. dxc5 Bc6 16. Nd4 Bxa4 17. Qxa4 Nxc5 18. Qc2 Nxd3 19. Qxd3 Bc5 20. Rc1 Rc8 21. Rfd1 a5 22. Kh1 Bxd4 23. Qxd4 Qe7 24. Rxc8 Rxc8 25. Bxf6 {½-½ Korshunov,S (2351)-Rivas Maceda,J (2397) WLS/SRCCC/21/D1 2021 [3]}) 14. Bf5 {[%emt 0:00:09]} b4 {[%emt 0:01:38]} 15. Na4 {[%emt 0:00:05]} Nh5 {[%emt 0:01:13]} ({Black should try} 15... Ra8 $14) 16. Bxe7 $16 {[%emt 0:00:25]} Qxe7 {[%emt 0:00:02]} 17. e4 {[%emt 0:00:15]} dxe4 {[%emt 0:01:42]} 18. fxe4 {[%emt 0:00:00]} Rcd8 {[%emt 0:00:02][%cal Oc6c5]} 19. Bxd7 {[%emt 0:00:16]} Rxd7 {[%emt 0:00:14]} 20. Nc5 {[%emt 0:00:01]} Rdd8 {[%emt 0:00:16]} 21. Qb3 {[%emt 0:00:09]} Bc8 {[%emt 0:00:08]} 22. Qxb4 {[%emt 0:00:27]} Bg4 {[%emt 0:00:07]} 23. Rd2 {[%emt 0:00:01]} Nf6 {[%emt 0:00:04]} (23... Bxe2 $14 24. Rxe2 Qd6) 24. Ng3 {[%emt 0:00:03]} Nd7 {[%emt 0:00:16]} 25. Rdf2 {[%emt 0:00:23] [#] Strongly threatening Rxf7. White has more active pieces.} Rf8 {[%emt 0:00:20]} ({Black should play} 25... Be6) 26. Nd3 {[%emt 0:00:08] A dynamic duo of knights.} Qg5 {[%emt 0:00:12]} (26... Qxb4 $16 {keeps fighting.} 27. Nxb4 Nb8) 27. Qc3 {[%emt 0:00:08]} Rc8 {[%emt 0:00:16]} (27... Be6 {was necessary.} 28. Nf4 (28. Qxc6 Rc8 $18) 28... Nf6 29. Nxe6 (29. Qxc6 Bc8 $18) 29... fxe6 30. Qxc6 Rfe8) 28. b4 {[%emt 0:00:08]} Qe3 {[%emt 0:00:09]} 29. Re1 {[%emt 0:00:07]} Qg5 {[%emt 0:00:02]} 30. Nc5 {[%emt 0:00:20]} (30. a3 $18) 30... Nxc5 {[%emt 0:00:10]} 31. Qxc5 {[%emt 0:00:00]} Qxc5 {[%emt 0:00:04]} 32. bxc5 {[%emt 0:00:00]} Rfd8 {[%emt 0:00:05]} 33. Rd2 {[%emt 0:00:03]} Rd7 {[%emt 0:00:22]} 34. Rb1 {[%emt 0:00:10]} Rcd8 {[%emt 0:00:11]} 35. Rb4 {[%emt 0:00:01][%cal Od4d5]} h5 {[%emt 0:00:44]} 36. Kf2 {[%emt 0:00:44]} h4 {[%emt 0:00:03]} 37. Ne2 {[%emt 0:00:00]} f5 {[%emt 0:00:07]} 38. d5 {[%emt 0:01:02][%cal Bd4d5,Bd5d6][%mdl 32] d6 is the strong threat.} fxe4 {[%emt 0:00:31]} (38... Bxe2 $142 39. Kxe2 (39. Rxe2 cxd5 40. exf5 {[%mdl 64] Discovered Attack} Rf8 $16) 39... cxd5) 39. d6 $18 {[%emt 0:00:01] Hoping for Nd4.} (39. Rxe4 Bxe2 40. Kxe2 Rxd5 41. Rxd5 Rxd5 $11) 39... Rf7+ {[%emt 0:00:05]} 40. Ke3 {[%emt 0:00:17] [#] And now Nd4 would win.} Rf5 {[%emt 0:00:01]} 41. Rc4 {[%emt 0:00:47] Nd4 would be deadly.} (41. Kxe4 $2 {loses.} Re8+ 42. Kd4 (42. Kd3 $2 Bxe2+ 43. Kc3 Rxc5+ 44. Kb3 Rd5 $19) 42... Bxe2 $19) (41. Rxe4 $6 Bxe2 42. Kxe2 Rxc5 $16) 41... h3 {[%emt 0:00:07]} (41... Bxe2 $142 42. Rxe2 Kf7 43. Kxe4 (43. Rxe4 Rxc5 44. Rf2+ Kg8 $16) 43... Kf6) 42. Nd4 {[%emt 0:00:04] Weighted Error Value: White=0.17 (very precise) /Black=0.30} ({Not} 42. Rxe4 Bxe2 43. Rxe2 Rxc5 $11) 1-0

[Event "CCT Airthings Masters Play-In 2023"]
[Site "Online"]
[Date "2023.02.03"]
[Round "5"]
[White "mishanick"]
[Black "ChessLover"]
[Result "1-0"]
[ECO "E24"]
[WhiteElo "2704"]
[BlackElo "2594"]
[Annotator "TA"]
[PlyCount "73"]
[EventDate "2023.02.03"]
[EventType "swiss"]
[EventCountry "NET"]
[SourceTitle "playchess.com"]
[Source "ChessBase"]
[SourceQuality "1"]
[TimeControl "600+2"]

{[%evp 21,73,14,9,0,21,0,106,90,173,125,118,111,95,114,147,147,202,190,272,275,339,341,337,302,270,255,219,181,240,241,240,231,401,246,353,346,399,415,498,434,467,454,410,311,569,469,779,479,560,552,868,846,2295,843]} 1. d4 {[%emt 0:00:03]} Nf6 {[%emt 0:00:06]} 2. c4 {[%emt 0:00:01]} e6 {[%emt 0:00:00]} 3. Nc3 {[%emt 0:00:00]} Bb4 {[%emt 0:00:03]} 4. e3 {[%emt 0:00:01]} O-O {[%emt 0:00:01]} 5. Bd3 {[%emt 0:00:01]} d5 {[%emt 0:00:00]} 6. a3 {[%emt 0:00:00]} Bxc3+ {[%emt 0:00:09]} 7. bxc3 {[%emt 0:00:01]} c5 {[%emt 0:00:01]} 8. cxd5 {[%emt 0:00:01]} exd5 {[%emt 0:00:14]} 9. Ne2 {[%emt 0:00:01]} Re8 {[%emt 0:00:16]} 10. O-O {[%emt 0:00:02]} Nc6 {[%emt 0:00:30] 10...b6 is the modern continuation.} 11. f3 {[%emt 0:00:03]} Na5 {[%emt 0:00:31]} 12. g4 $5 {[%emt 0:01:05][%mdl 4] [#] Leaves trodden paths. E24: Nimzo-Indian: Sämisch: Unusual Black 5th moves and 5...c5 sidelines.} h5 $146 {[%emt 0:00:59]} ({Predecessor:} 12... Nd7 13. Ng3 Nf8 14. Ra2 Bd7 15. e4 cxd4 16. cxd4 Qb6 17. Be3 Rac8 18. Bf2 Rc3 19. exd5 Rxd3 20. Qxd3 {½-½ Gabrielian,A (2464)-Godzwon,I (2352) Titled Tuesday intern op 04th Jan blitz 2022 (10)}) 13. g5 {[%emt 0:00:06]} (13. dxc5 hxg4 14. Nd4 Nc4 15. Bxc4 dxc4 $17) (13. h3 $5 {[%cal Rd4c5]}) 13... Ne4 {[%emt 0:00:01]} 14. fxe4 {[%emt 0:01:23] White is better.} dxe4 {[%emt 0:00:58]} (14... Qxg5+ $16 15. Kh1 (15. Ng3 c4 $14) 15... dxe4) 15. Bb5 {[%emt 0:00:26]} (15. g6 $18 fxg6 16. Bb5) 15... Qxg5+ $16 {[%emt 0:00:01]} 16. Ng3 {[%emt 0:01:53]} Bg4 {[%emt 0:00:03] [#]} 17. Be2 {[%emt 0:00:07] aiming for Bxg4.} Bxe2 {[%emt 0:01:19]} 18. Qxe2 {[%emt 0:00:01]} g6 {[%emt 0:00:00] [#] Inhibits Rf5.} (18... Nb3 $16) 19. Qg2 $1 $18 {[%emt 0:01:09][%cal Oh2h4]} Nc4 {[%emt 0:01:23]} (19... h4 $142) 20. Rf4 {[%emt 0:00:09]} Nd6 {[%emt 0:01:04]} 21. h4 {[%emt 0:00:03]} Qd5 {[%emt 0:00:11]} 22. Bd2 {[%emt 0:00:11]} Kh7 {[%emt 0:00:17]} 23. Raf1 {[%emt 0:00:02][%cal Oc3c4]} f5 {[%emt 0:00:01]} 24. Ne2 {[%emt 0:00:08][%cal Bg3e2,Be2f4,Bf4e6,Be6g5][%mdl 32]} Qa2 {[%emt 0:00:22]} (24... Rg8 {keeps fighting.} 25. R4f2 Nf7) 25. Bc1 {[%emt 0:00:02]} Nf7 {[%emt 0:00:32]} 26. R4f2 {[%emt 0:00:01] Threatens to win with Nf4.} (26. dxc5 $6 Ne5 $16) 26... Nh6 $2 {[%emt 0:00:01]} (26... Qc4 27. Qg3 (27. Nf4 Rg8 $18) 27... Nh6 28. Qc7+ Qf7 29. Qxc5 Ng4) 27. Nf4 {[%emt 0:00:02]} (27. dxc5 Ng4 28. Nf4 Qc4 $18) 27... Qg8 {[%emt 0:00:01]} (27... Qf7 $142 28. Qg5 (28. dxc5 Rad8 $18) 28... Ng4) 28. Qg5 {[%emt 0:00:05]} (28. dxc5 Rad8 29. Rb2 Rd7 $18) (28. Rb2 Re7 29. Qg5 (29. dxc5 Ng4 $18) 29... Qf7 $18) 28... Qf7 {[%emt 0:00:21]} 29. Rg2 {[%emt 0:00:10]} ({Much less strong is} 29. dxc5 Ng4 30. Rd2 a5 31. Nxh5 Qe7 $18) 29... Rg8 {[%emt 0:00:23]} 30. d5 {[%emt 0:00:06]} ({Weaker is} 30. dxc5 Rae8 31. c4 Qe7 $18) 30... c4 {[%emt 0:00:12]} 31. Ne6 {[%emt 0:00:02] Wards off Rad8} Rae8 {[%emt 0:00:26]} 32. Qf4 {[%emt 0:00:01] Black must now prevent Ng5+.} Qf6 {[%emt 0:00:06]} (32... Rxe6 {was worth a try.} 33. dxe6 Qxe6) 33. Ng5+ {[%emt 0:00:02] White is clearly winning.} Kh8 {[%emt 0:00:02]} (33... Kg7 $142 34. Qc7+ Nf7) 34. Qc7 {[%emt 0:00:00][%csl Gg5][%cal Rc7h7]} Rg7 {[%emt 0:00:08] Prevents Qh7+} 35. Qxc4 {[%emt 0:00:01]} Qd6 {[%emt 0:00:11]} 36. Qd4 {[%emt 0:00:04]} Ng4 {[%emt 0:00:13]} 37. c4 {[%emt 0:00:02] Weighted Error Value: White=0.45/Black=0.70} (37. Nf7+ $142 Kh7 38. Nxd6) 1-0

[Event "CCT Airthings Masters Play-In 2023"]
[Site "Online"]
[Date "2023.02.03"]
[Round "5"]
[White "GukeshDommaraju"]
[Black "Nepomniachtchi, Ian"]
[Result "1/2-1/2"]
[ECO "D37"]
[WhiteElo "2702"]
[BlackElo "2793"]
[Annotator "TA"]
[PlyCount "95"]
[EventDate "2023.02.03"]
[EventType "swiss"]
[EventCountry "NET"]
[SourceTitle "playchess.com"]
[Source "ChessBase"]
[SourceQuality "1"]
[TimeControl "600+2"]

{[%evp 13,95,0,4,0,0,0,20,13,4,7,13,13,13,13,13,18,18,13,35,35,56,0,0,0,0,0,7,7,6,0,0,0,0,0,0,0,0,-14,0,0,0,0,0,0,0,0,0,0,0,0,0,0,0,0,0,0,0,0,0,0,0,0,0,0,0,0,0,0,0,0,0,0,0,0,0,0,0,0,0,0,0,0,0,0]} 1. d4 {[%emt 0:00:03]} Nf6 {[%emt 0:00:07]} 2. c4 {[%emt 0:00:01]} e6 {[%emt 0:00:01]} 3. Nf3 {[%emt 0:00:02]} d5 {[%emt 0:00:01]} 4. Nc3 {[%emt 0:00:01]} Be7 {[%emt 0:00:11]} 5. Bf4 {[%emt 0:00:07]} O-O {[%emt 0:00:03]} 6. e3 {[%emt 0:00:01]} Nbd7 {[%emt 0:00:02]} 7. c5 {[%emt 0:00:07]} Nh5 {[%emt 0:00:13]} 8. Bd3 {[%emt 0:00:05] D37: Queen's Gambit Declined: 5 Bf4.} Nxf4 {[%emt 0:00:22]} 9. exf4 {[%emt 0:00:00]} c6 {[%emt 0:00:01]} 10. O-O {[%emt 0:00:02] 10.Qc2 is not played anymore.} b6 {[%emt 0:00:00]} 11. b4 {[%emt 0:00:01]} a5 {[%emt 0:00:03]} 12. a3 {[%emt 0:00:06]} Qc7 {[%emt 0:00:06] 12...Ba6 is the hot move.} 13. g3 {[%emt 0:00:30]} Ba6 {[%emt 0:00:04]} 14. Bxa6 {[%emt 0:00:44]} Rxa6 {[%emt 0:00:01][%cal Ba8a6,Ba6b6,Bb6b2][%mdl 32]} 15. Qe2 {[%emt 0:00:17]} Rfa8 {[%emt 0:00:26]} 16. b5 {[%emt 0:00:01]} cxb5 {[%emt 0:00:02]} 17. Nxb5 {[%emt 0:00:06]} (17. Nxd5 $14 exd5 18. Qxe7) 17... Qc6 $11 {[%emt 0:00:08] The position is equal.} 18. cxb6 {[%emt 0:00:05]} Rxb6 {[%emt 0:00:13]} 19. a4 {[%emt 0:00:04] Black must now prevent Rfc1.} Rc8 {[%emt 0:00:15][%cal Ba8c8,Bc8c2,Bc2f2][%mdl 32]} 20. Na7 {[%emt 0:00:54][%csl LRc6,LRc8]} Qc2 {[%emt 0:01:29] [#]} 21. Qxc2 $146 {[%emt 0:00:18]} ({Predecessor:} 21. Qe1 Rc4 22. Rc1 Qa2 23. Nc8 Bb4 24. Nxb6 Bxe1 25. Nxc4 dxc4 26. Rfxe1 h6 27. Ne5 {0-1 Iniyan,P (2468)-Muradli,M (2420) World ol U16 2018 (8.3)}) 21... Rxc2 {[%emt 0:00:00]} 22. Rfc1 {[%emt 0:00:02]} Rbb2 {[%emt 0:00:27]} 23. Nc6 {[%emt 0:02:14]} Rxf2 {[%emt 0:01:29]} 24. Nxe7+ {[%emt 0:00:03] A dynamic duo of knights.} Kf8 {[%emt 0:00:01]} 25. Nxd5 {[%emt 0:00:42]} exd5 {[%emt 0:00:00]} 26. Rc8+ {[%emt 0:00:03]} Ke7 {[%emt 0:00:01]} 27. Re1+ {[%emt 0:00:02]} Kd6 {[%emt 0:00:41]} 28. Nh4 {[%emt 0:00:01][%cal Rh4f5] [#]} g6 {[%emt 0:00:15] Inhibits Nf5+.} 29. Ra8 {[%emt 0:00:02]} Rxh2 {[%emt 0:00:26]} 30. Ra6+ {[%emt 0:00:07]} Kc7 {[%emt 0:00:02]} 31. Rxa5 {[%emt 0:00:02]} Rh3 {[%emt 0:00:22]} 32. Re3 {[%emt 0:00:01]} (32. Rxd5 $2 {too greedy.} Rxg3+ 33. Kf1 Rh3 $19) 32... Nf6 {[%emt 0:00:12] ...Ng4 would be deadly.} 33. Ra7+ {[%emt 0:01:36]} Kb6 {[%emt 0:00:03]} 34. Rxf7 {[%emt 0:00:01]} Ne4 {[%emt 0:00:02]} 35. Rxh7 {[%emt 0:00:08]} Rxg3+ {[%emt 0:02:09]} (35... Nxg3 $2 36. Re6+ Ka5 37. Ra7+ (37. Rxg6 $2 Rh1#) 37... Kb4 38. Rb7+ (38. Nxg6 $2 Rh1#) 38... Kc3 39. Rc6+ Kd3 40. Rxb2 $18) 36. Rxg3 {[%emt 0:00:02]} Nxg3 {[%emt 0:00:00]} 37. Nxg6 {[%emt 0:00:28][%mdl 4096] Endgame KRN-KRN} Ne2+ {[%emt 0:00:01]} 38. Kf1 {[%emt 0:00:18]} Nxd4 {[%emt 0:00:03]} 39. Ne7 {[%emt 0:00:02]} Kc5 {[%emt 0:00:30]} 40. Rh5 {[%emt 0:00:02]} Kc4 {[%emt 0:00:05]} 41. Nxd5 {[%emt 0:00:04]} Ra2 {[%emt 0:00:10]} 42. Re5 {[%emt 0:01:40]} Nf3 {[%emt 0:00:03]} 43. Re2 {[%emt 0:00:03]} Nh2+ {[%emt 0:00:11]} 44. Kf2 {[%emt 0:00:01]} Ng4+ {[%emt 0:00:06]} 45. Kf3 {[%emt 0:00:04]} Nh2+ {[%emt 0:00:01]} 46. Kf2 {[%emt 0:00:03]} Ng4+ {[%emt 0:00:01]} 47. Kf3 {[%emt 0:00:01]} Nh2+ {[%emt 0:00:01]} 48. Kf2 {[%emt 0:00:01] Weighted Error Value: White=0.02 (flawless) /Black=0.02 (flawless)} 1/2-1/2

[Event "CCT Airthings Masters Play-In 2023"]
[Site "Online"]
[Date "2023.02.03"]
[Round "5"]
[White "LiemLe"]
[Black "Andreikin, Dmitry"]
[Result "1/2-1/2"]
[ECO "E18"]
[WhiteElo "2687"]
[BlackElo "2729"]
[Annotator "TA"]
[PlyCount "165"]
[EventDate "2023.02.03"]
[EventType "swiss"]
[EventCountry "NET"]
[SourceTitle "playchess.com"]
[Source "ChessBase"]
[SourceQuality "1"]
[TimeControl "600+2"]

{[%evp 15,164,7,25,25,29,11,27,10,29,26,34,33,50,60,59,50,51,50,41,49,91,21,25,29,52,0,53,41,76,75,74,21,75,70,78,68,74,72,66,74,85,85,85,85,85,85,85,85,85,85,87,85,92,92,92,85,92,92,105,105,105,93,93,93,106,92,92,92,92,92,92,92,92,87,88,68,68,0,0,0,0,0,0,0,0,0,0,0,68,68,71,78,85,8,37,37,37,37,37,37,37,0,37,37,37,37,37,0,37,37,37,37,37,37,37,37,37,0,37,37,37,37,37,37,37,0,0,0,0,0,0,0,0,0,0,0,0,0,0,0,0,0,0,0,0,0,0,0,0,0,0]} 1. d4 {[%emt 0:00:03]} Nf6 {[%emt 0:00:06]} 2. Nf3 {[%emt 0:00:01]} e6 {[%emt 0:00:05]} 3. c4 {[%emt 0:00:01]} b6 {[%emt 0:00:05]} 4. g3 {[%emt 0:00:02]} Bb7 {[%emt 0:00:01]} 5. Bg2 {[%emt 0:00:01]} Be7 {[%emt 0:00:01]} 6. O-O {[%emt 0:00:01]} O-O {[%emt 0:00:01]} 7. Nc3 {[%emt 0:00:02]} Ne4 {[%emt 0:00:01]} 8. Bd2 {[%emt 0:00:01] is the new trend.} Bf6 {[%emt 0:00:04]} 9. Be1 {[%emt 0:00:06] E18: Queen's Indian: Old Main Line (4 g3 Bb7 5 Bg2 Be7 6 0-0 0-0 7 Nc3).} c5 {[%emt 0:00:40]} 10. Rc1 {[%emt 0:00:34]} d6 {[%emt 0:01:11]} 11. Qd3 {[%emt 0:00:19] White has an edge.} Nxc3 {[%emt 0:00:05]} 12. Bxc3 {[%emt 0:00:00][%cal Of3g5] [#]} Nc6 $146 {[%emt 0:00:19]} ({Predecessor:} 12... cxd4 13. Bxd4 Na6 14. Bxf6 Qxf6 15. Qd4 Bxf3 16. Qxf6 gxf6 17. Bxf3 Rab8 18. Rfd1 Rfd8 {1-0 Hampel,F (2201)-Markgraf,S (2132) Oberliga Nord W 1516 2015 (6.5)}) 13. d5 {[%emt 0:00:27]} Nb4 {[%emt 0:00:15]} 14. Bxb4 {[%emt 0:00:03]} cxb4 {[%emt 0:00:00]} 15. Qd2 {[%emt 0:01:05]} a5 {[%emt 0:00:15]} 16. dxe6 {[%emt 0:00:02]} fxe6 {[%emt 0:00:02]} 17. Rfd1 {[%emt 0:00:10][%cal Bf1d1,Bd1d4,Bd4e4][%mdl 32]} Rc8 {[%emt 0:00:25]} 18. Nd4 {[%emt 0:00:30]} (18. Bh3 $16 Re8 19. Qxd6 Qxd6 20. Rxd6) 18... Bxg2 $11 {[%emt 0:00:05]} 19. Kxg2 {[%emt 0:00:00]} ({Of course not} 19. Nxe6 Qe7 20. Nxf8 Bb7 21. Qxd6 (21. Nxh7 Kxh7 22. f3 Bg5 $15) 21... Qe4 $15) 19... Qd7 {[%emt 0:00:51]} 20. Qe3 {[%emt 0:00:21]} (20. e4 $14) 20... Bxd4 {[%emt 0:00:42]} (20... Rfe8 $11) 21. Rxd4 $14 {[%emt 0:00:04]} Rc5 {[%emt 0:00:02]} 22. Rcd1 {[%emt 0:00:06]} Qc6+ {[%emt 0:00:16]} 23. Qe4 {[%emt 0:00:24]} (23. Kg1 $16 d5 24. cxd5 Rxd5 25. Rxd5 exd5 26. Qb3) 23... Rc8 {[%emt 0:01:52]} (23... Rd8 $11 {remains equal.}) 24. b3 $16 {[%emt 0:00:13] Threatens to win with Qxc6.} Qxe4+ {[%emt 0:00:13]} 25. Rxe4 $14 {[%emt 0:00:00][%mdl 4096] Endgame KRR-KRR} d5 $1 {[%emt 0:00:00]} 26. Rxe6 {[%emt 0:00:29]} dxc4 {[%emt 0:00:03]} 27. bxc4 {[%emt 0:00:00]} ({Much weaker is} 27. Rxb6 c3 28. Rbd6 c2 $11) 27... Rxc4 {[%emt 0:00:24]} 28. Rxb6 {[%emt 0:00:02]} Rc2 {[%emt 0:00:02]} 29. Rd7 {[%emt 0:00:03]} Kh8 {[%emt 0:00:15]} 30. Ra7 {[%emt 0:01:19]} Rxa2 {[%emt 0:00:08]} 31. Rxb4 {[%emt 0:00:05] Black must now prevent Re4.} Rxe2 {[%emt 0:00:04]} ({Less strong is} 31... axb4 32. Rxa2 g5 33. Rb2 $16) 32. Rbb7 {[%emt 0:00:05]} Rg8 {[%emt 0:00:18]} 33. Rxa5 {[%emt 0:00:09]} h6 {[%emt 0:00:01]} 34. Rf7 {[%emt 0:00:19] Wards off Rf8} Ree8 {[%emt 0:00:04]} 35. Raf5 {[%emt 0:00:05] White is more active.} Kh7 {[%emt 0:00:03]} 36. h4 {[%emt 0:00:01]} Re6 {[%emt 0:00:01]} 37. h5 {[%emt 0:00:04]} Rge8 {[%emt 0:00:03]} 38. Ra7 {[%emt 0:00:07]} R6e7 {[%emt 0:00:04]} 39. Raa5 {[%emt 0:00:02]} Rd7 {[%emt 0:00:01]} 40. g4 {[%emt 0:00:02]} Rc7 {[%emt 0:00:01]} 41. Kg3 {[%emt 0:00:03]} Ree7 {[%emt 0:00:17]} 42. Ra8 {[%emt 0:00:22] [#] And now Rff8 would win.} Rf7 {[%emt 0:00:02]} 43. Rxf7 {[%emt 0:00:02]} Rxf7 $16 {[%emt 0:00:01] KR-KR} 44. f4 {[%emt 0:00:01]} Rb7 {[%emt 0:00:02]} 45. Ra6 {[%emt 0:00:17]} Rb3+ {[%emt 0:00:02]} 46. Kf2 {[%emt 0:00:04]} (46. Kh4 $1 $14) 46... Rb4 $11 {[%emt 0:00:16]} 47. Ke3 {[%emt 0:00:15]} Rb3+ {[%emt 0:00:01]} 48. Ke2 {[%emt 0:00:09]} Rb4 {[%emt 0:00:04]} 49. Kf3 {[%emt 0:00:01]} Rb3+ {[%emt 0:00:01]} 50. Kg2 {[%emt 0:00:01]} Rb4 {[%emt 0:00:04]} 51. Kg3 {[%emt 0:00:01]} ({White should try} 51. Rd6 $11) 51... Rb3+ $14 {[%emt 0:00:01]} 52. Kh4 $1 {[%emt 0:00:01]} Rb4 {[%emt 0:00:02] [#]} 53. f5 $1 {[%emt 0:00:02]} Rb3 {[%emt 0:00:05]} 54. f6 {[%emt 0:00:15]} (54. Ra8 $16) 54... gxf6 {[%emt 0:00:03]} 55. Rxf6 {[%emt 0:00:01]} Ra3 {[%emt 0:00:02]} 56. Rf2 {[%emt 0:00:07]} Kg7 {[%emt 0:00:03]} 57. Rg2 {[%emt 0:00:02]} Rb3 {[%emt 0:00:03]} 58. Rg3 {[%emt 0:00:01]} Rb2 {[%emt 0:00:02]} 59. Rc3 {[%emt 0:00:03]} Rb4 {[%emt 0:00:03]} 60. Rc7+ {[%emt 0:00:03]} Kg8 {[%emt 0:00:02]} 61. Rc3 {[%emt 0:00:05]} Kg7 {[%emt 0:00:02]} 62. Kg3 {[%emt 0:00:00]} Ra4 {[%emt 0:00:01]} 63. Rc7+ {[%emt 0:00:04]} Kg8 {[%emt 0:00:01]} 64. Re7 {[%emt 0:00:01]} Rb4 {[%emt 0:00:02]} 65. Kf3 {[%emt 0:00:02]} Ra4 {[%emt 0:00:03]} 66. Re4 {[%emt 0:00:02]} Ra1 {[%emt 0:00:04]} 67. Kf4 {[%emt 0:00:05]} Kf7 {[%emt 0:00:03]} 68. Rb4 {[%emt 0:00:13]} Rf1+ {[%emt 0:00:27]} 69. Ke5 {[%emt 0:00:01]} Re1+ {[%emt 0:00:03]} 70. Re4 {[%emt 0:00:04]} Rxe4+ {[%emt 0:00:11] The position is equal.} 71. Kxe4 $11 {[%emt 0:00:00] White wants to mate with Kf5. KPP-KP} Ke6 {[%emt 0:00:01]} 72. Kd4 {[%emt 0:00:04]} Kf6 {[%emt 0:00:04]} 73. Ke3 {[%emt 0:00:00]} Ke7 {[%emt 0:00:02]} 74. Kd3 {[%emt 0:00:06]} (74. Kd2 $5) 74... Kf6 {[%emt 0:00:05]} 75. Ke4 {[%emt 0:00:04]} Ke6 {[%emt 0:00:01]} 76. Kf4 {[%emt 0:00:02]} Kf6 $1 {[%emt 0:00:01]} 77. g5+ {[%emt 0:00:01]} hxg5+ {[%emt 0:00:01] KP-KP} 78. Kg4 {[%emt 0:00:00]} Kg7 {[%emt 0:00:01]} 79. Kxg5 {[%emt 0:00:00]} Kh7 {[%emt 0:00:00]} 80. h6 {[%emt 0:00:00][%cal Bh5h6,Bh6h7][%mdl 32]} Kh8 {[%emt 0:00:00]} 81. Kg6 {[%emt 0:00:00]} Kg8 {[%emt 0:00:01]} 82. h7+ {[%emt 0:00:00]} Kh8 {[%emt 0:00:01]} 83. Kh6 {[%emt 0:00:00] Weighted Error Value: White=0.12 (very precise) /Black=0.09 (flawless)} 1/2-1/2